fUSD/lending_fUSD_20240318
["ID","MTS","AMOUNT","RATE_DAILY","PERIOD"]
[319486305,1710800016642,-500.0,0.00026301,2]
[319486306,1710800016653,-839.53,0.00026301,2]
[319486307,1710800016663,-734.91,0.00026301,2]
[319486308,1710800016673,-1753.56,0.00026301,2]
[319486309,1710800016683,-839.74,0.00026301,2]
[319486310,1710800016694,-500.0,0.00026301,2]
[319486311,1710800016703,-4941.23,0.00026301,2]
[319486312,1710800016713,-924.55,0.00026301,2]
[319486313,1710800016723,-646.58,0.00026301,2]
[319486314,1710800016733,-1444.11,0.00026301,2]
[319486315,1710800016749,-1862.07,0.00026301,2]
[319486316,1710800016758,-2596.77,0.00026301,2]
[319486317,1710800016768,-1913.61,0.00026301,2]
[319486318,1710800016778,-600.66,0.00026301,2]
[319486319,1710800016788,-1169.17,0.00026301,2]
[319486320,1710800016798,-501.0,0.00026301,2]
[319486321,1710800016808,-671.74,0.00026301,2]
[319486322,1710800016819,-500.0,0.00026301,2]
[319486323,1710800016829,-660.79,0.00026301,2]
[319486324,1710800016839,-4429.56,0.00026301,2]
[319486325,1710800016848,-645.13,0.00026301,2]
[319486326,1710800016857,-1387.34,0.00026301,2]
[319486327,1710800016866,-1092.65,0.00026301,2]
[319486328,1710800016876,-775.21,0.00026301,2]
[319486329,1710800016885,-1234.18,0.00026301,2]
[319486330,1710800016895,-1640.92,0.00026301,2]
[319486331,1710800016904,-660.8,0.00026301,2]
[319486332,1710800016914,-618.02,0.00026301,2]
[319486333,1710800016924,-2991.4,0.00026301,2]
[319486334,1710800016934,-500.0,0.00026301,2]
[319486335,1710800016945,-526.67,0.00026301,2]
[319486336,1710800016957,-520.66,0.00026301,2]
[319486337,1710800016967,-3432.69,0.00026301,2]
[319486338,1710800016977,-929.21,0.00026301,2]
[319486339,1710800016991,-2512.6,0.00026301,2]
[319486340,1710800017001,-553.17,0.00026301,2]
[319486341,1710800017011,-632.91,0.00026301,2]
[319486342,1710800017024,-587.03,0.00026301,2]
[319486343,1710800017034,-500.0,0.00026301,2]
[319486344,1710800017044,-500.0,0.00026301,2]
[319486345,1710800017055,-1670.28,0.00026301,2]
[319486346,1710800017065,-1508.72,0.00026301,2]
[319486347,1710800017075,-500.0,0.00026301,2]
[319486348,1710800017085,-588.94,0.00026301,2]
[319486349,1710800017095,-2672.81,0.00026301,2]
[319486350,1710800017106,-992.88,0.00026301,2]
[319486351,1710800017116,-1421.34,0.00026301,2]
[319486352,1710800017127,-1591.7,0.00026301,2]
[319486353,1710800017137,-1479.34,0.00026301,2]
[319486354,1710800017146,-778.13,0.00026301,2]
[319486355,1710800017156,-549.69,0.00026301,2]
[319486356,1710800017166,-1096.72,0.00026301,2]
[319486357,1710800017175,-2210.21,0.00026301,2]
[319486358,1710800017185,-1855.24,0.00026301,2]
[319486359,1710800017194,-500.0,0.00026301,2]
[319486360,1710800017206,-869.7,0.00026301,2]
[319486361,1710800017216,-1747.53,0.00026301,2]
[319486362,1710800017227,-680.92,0.00026301,2]
[319486363,1710800017238,-665.42,0.00026301,2]
[319486364,1710800017247,-1181.58,0.00026301,2]
[319486365,1710800017256,-1501.92,0.00026301,2]
[319486366,1710800017266,-2323.42,0.00026301,2]
[319486367,1710800017275,-2355.45,0.00026301,2]
[319486368,1710800017285,-2348.13,0.00026301,2]
[319486369,1710800017294,-1841.43,0.00026301,2]
[319486370,1710800017304,-633.95,0.00026301,2]
[319486371,1710800017314,-2789.32,0.00026301,2]
[319486372,1710800017324,-1047.26,0.00026301,2]
[319486373,1710800017333,-506.7,0.00026301,2]
[319486374,1710800017342,-500.0,0.00026301,2]
[319486375,1710800017353,-2028.96,0.00026301,2]
[319486376,1710800017362,-1121.74,0.00026301,2]
[319486377,1710800017372,-727.29,0.00026301,2]
[319486378,1710800017382,-500.0,0.00026301,2]
[319486379,1710800017396,-1964.52,0.00026301,2]
[319486380,1710800017405,-800.57,0.00026301,2]
[319486381,1710800017415,-500.0,0.00026301,2]
[319486382,1710800017425,-855.83,0.00026301,2]
[319486383,1710800017435,-515.18,0.00026301,2]
[319486384,1710800017445,-805.44,0.00026301,2]
[319486385,1710800017455,-1465.25,0.00026301,2]
[319486386,1710800017465,-1137.55,0.00026301,2]
[319486387,1710800017475,-703.59,0.00026301,2]
[319486388,1710800017484,-1372.51,0.00026301,2]
[319486389,1710800017496,-1311.42,0.00026301,2]
[319486390,1710800017506,-890.31,0.00026301,2]
[319486391,1710800017515,-693.23,0.00026301,2]
[319486392,1710800017525,-606.63,0.00026301,2]
[319486393,1710800017535,-1355.8,0.00026301,2]
[319486394,1710800017544,-633.23,0.00026301,2]
[319486395,1710800017554,-931.19,0.00026301,2]
[319486396,1710800017563,-500.0,0.00026301,2]
[319486397,1710800017573,-1311.22,0.00026301,2]
[319486398,1710800017583,-560.88,0.00026301,2]
[319486399,1710800017593,-578.22,0.00026301,2]
[319486400,1710800017603,-931.2,0.00026301,2]
[319486401,1710800017616,-1373.23,0.00026301,2]
[319486402,1710800017627,-1189.08,0.00026301,2]
[319486403,1710800017637,-500.0,0.00026301,2]
[319486404,1710800017647,-582.88,0.00026301,2]
[319486405,1710800017656,-807.67,0.00026301,2]
[319486406,1710800017667,-500.0,0.00026301,2]
[319486407,1710800017676,-500.0,0.00026301,2]
[319486408,1710800017688,-500.0,0.00026301,2]
[319486409,1710800017698,-1318.07,0.00026301,2]
[319486410,1710800017708,-2537.59,0.00026301,2]
[319486411,1710800017718,-1833.13,0.00026301,2]
[319486412,1710800017728,-584.63,0.00026301,2]
[319486413,1710800017738,-922.71,0.00026301,2]
[319486414,1710800017748,-522.08,0.00026301,2]
[319486415,1710800017758,-667.48,0.00026301,2]
[319486416,1710800017767,-1186.68,0.00026301,2]
[319486417,1710800017777,-1847.99,0.00026301,2]
[319486418,1710800017787,-998.55,0.00026301,2]
[319486419,1710800017796,-797.09,0.00026301,2]
[319486420,1710800017806,-1079.26,0.00026301,2]
[319486421,1710800017816,-1856.02,0.00026301,2]
[319486422,1710800017826,-1186.25,0.00026301,2]
[319486423,1710800017836,-897.94,0.00026301,2]
[319486424,1710800017846,-1418.3,0.00026301,2]
[319486425,1710800017856,-844.5,0.00026301,2]
[319486426,1710800017866,-1228.33,0.00026301,2]
[319486427,1710800017875,-656.86,0.00026301,2]
[319486428,1710800017885,-1254.05,0.00026301,2]
[319486429,1710800017895,-1220.28,0.00026301,2]
[319486430,1710800017904,-524.26,0.00026301,2]
[319486431,1710800017914,-544.86,0.00026301,2]
[319486432,1710800017923,-1112.38,0.00026301,2]
[319486433,1710800017934,-990.25,0.00026301,2]
[319486434,1710800017943,-1554.62,0.00026301,2]
[319486435,1710800017953,-615.98,0.00026301,2]
[319486436,1710800017963,-1046.24,0.00026301,2]
[319486437,1710800017973,-525.88,0.00026301,2]
[319486438,1710800017982,-1155.33,0.00026301,2]
[319486439,1710800017994,-527.83,0.00026301,2]
[319486440,1710800018003,-3244.32,0.00026301,2]
[319486441,1710800018013,-500.0,0.00026301,2]
[319486442,1710800018022,-1017.43,0.00026301,2]
[319486443,1710800018032,-1754.86,0.00026301,2]
[319486444,1710800018041,-1859.5,0.00026301,2]
[319486445,1710800018051,-1204.75,0.00026301,2]
[319486446,1710800018060,-721.17,0.00026301,2]
[319486447,1710800018070,-1304.47,0.00026301,2]
[319486448,1710800018079,-1387.32,0.00026301,2]
[319486449,1710800018088,-1084.75,0.00026301,2]
[319486450,1710800018098,-984.35,0.00026301,2]
[319486451,1710800018107,-500.0,0.00026301,2]
[319486452,1710800018116,-1042.11,0.00026301,2]
[319486453,1710800018126,-550.03,0.00026301,2]
[319486454,1710800018136,-230.83636071,0.00026301,2]
[319486455,1710800018146,-3263.23,0.00026301,2]
[319486456,1710800018156,-1980.05,0.00026301,2]
[319486457,1710800018165,-1006.81,0.00026301,2]
[319486458,1710800018175,-1334.24,0.00026301,2]
[319486459,1710800018185,-459.59414937,0.00026301,2]
[319486460,1710800018194,-772.45,0.00026301,2]
[319486461,1710800018203,-879.01,0.00026301,2]
[319486462,1710800018213,-577.06,0.00026301,2]
[319486463,1710800018223,-1289.15,0.00026301,2]
[319486464,1710800018232,-1162.86,0.00026301,2]
[319486465,1710800018244,-500.0,0.00026301,2]
[319486466,1710800018253,-539.59,0.00026301,2]
[319486467,1710800018262,-1284.59,0.00026301,2]
[319486468,1710800018271,-1343.86,0.00026301,2]
[319486469,1710800018282,-2423.47,0.00026301,2]
[319486470,1710800018291,-790.0,0.00026301,2]
[319486471,1710800018301,-1561.78,0.00026301,2]
[319486472,1710800018310,-2345.93,0.00026301,2]
[319486473,1710800018320,-1543.03,0.00026301,2]
[319486474,1710800018329,-688.89,0.00026301,2]
[319486475,1710800018339,-500.0,0.00026301,2]
[319486476,1710800018348,-779.42,0.00026301,2]
[319486477,1710800018358,-1455.91,0.00026301,2]
[319486478,1710800018368,-964.51,0.00026301,2]
[319486479,1710800018378,-1604.71,0.00026301,2]
[319486480,1710800018388,-865.84,0.00026301,2]
[319486481,1710800018398,-434.09201647,0.00026301,2]
[319486482,1710800018407,-1347.47,0.00026301,2]
[319486483,1710800018417,-1883.82,0.00026301,2]
[319486484,1710800018428,-500.0,0.00026301,2]
[319486485,1710800018437,-615.15,0.00026301,2]
[319486486,1710800018447,-743.05,0.00026301,2]
[319486487,1710800018457,-1288.43,0.00026301,2]
[319486488,1710800018467,-532.05,0.00026301,2]
[319486489,1710800018476,-1050.86,0.00026301,2]
[319486490,1710800018488,-568.35,0.00026301,2]
[319486491,1710800018498,-801.95,0.00026301,2]
[319486492,1710800018508,-3692.13,0.00026301,2]
[319486493,1710800018518,-1021.88,0.00026301,2]
[319486494,1710800018528,-1387.79,0.00026301,2]
[319486495,1710800018538,-500.0,0.00026301,2]
[319486496,1710800018547,-1736.34,0.00026301,2]
[319486497,1710800018556,-722.05,0.00026301,2]
[319486498,1710800018566,-2682.4,0.00026301,2]
[319486499,1710800018575,-917.72,0.00026301,2]
[319486500,1710800018585,-1582.16,0.00026301,2]
[319486501,1710800018595,-403.13710037,0.00026301,2]
[319486502,1710800018604,-500.0,0.00026301,2]
[319486503,1710800018615,-500.0,0.00026301,2]
[319486504,1710800018625,-899.67,0.00026301,2]
[319486505,1710800018634,-1197.99,0.00026301,2]
[319486506,1710800018644,-2570.57,0.00026301,2]
[319486507,1710800018654,-832.49,0.00026301,2]
[319486508,1710800018664,-2336.68,0.00026301,2]
[319486509,1710800018673,-714.57,0.00026301,2]
[319486510,1710800018683,-570.84,0.00026301,2]
[319486511,1710800018692,-572.14,0.00026301,2]
[319486512,1710800018701,-1267.22,0.00026301,2]
[319486513,1710800018711,-1986.27,0.00026301,2]
[319486514,1710800018721,-1031.5,0.00026301,2]
[319486515,1710800018731,-1487.73,0.00026301,2]
[319486516,1710800018743,-713.53,0.00026301,2]
[319486517,1710800018751,-1462.06,0.00026301,2]
[319486518,1710800018761,-500.0,0.00026301,2]
[319486519,1710800018885,-1113.91,0.00026301,2]
[319486520,1710800018895,-662.67,0.00026301,2]
[319486521,1710800018905,-1374.98,0.00026301,2]
[319486522,1710800018914,-2453.88,0.00026301,2]
[319486523,1710800018923,-584.72,0.00026301,2]
[319486524,1710800018932,-2831.64,0.00026301,2]
[319486525,1710800018943,-1349.99,0.00026301,2]
[319486526,1710800018952,-1580.15,0.00026301,2]
[319486527,1710800018961,-1466.21,0.00026301,2]
[319486528,1710800018971,-500.0,0.00026301,2]
[319486529,1710800018980,-1118.72,0.00026301,2]
[319486530,1710800018989,-606.91,0.00026301,2]
[319486531,1710800018997,-500.0,0.00026301,2]
[319486532,1710800019006,-1958.41,0.00026301,2]
[319486533,1710800019015,-605.4,0.00026301,2]
[319486534,1710800019024,-500.0,0.00026301,2]
[319486535,1710800019033,-500.0,0.00026301,2]
[319486536,1710800019042,-942.42,0.00026301,2]
[319486537,1710800019051,-569.15,0.00026301,2]
[319486538,1710800019060,-500.0,0.00026301,2]
[319486539,1710800019070,-1400.41,0.00026301,2]
[319486540,1710800019079,-941.12,0.00026301,2]
[319486541,1710800019089,-500.0,0.00026301,2]
[319486542,1710800019098,-1781.44,0.00026301,2]
[319486543,1710800019107,-504.6850118,0.00026301,2]
[319486544,1710800019116,-1912.95,0.00026301,2]
[319486545,1710800019126,-713.68,0.00026301,2]
[319486546,1710800019135,-1203.57,0.00026301,2]
[319486547,1710800019145,-905.72,0.00026301,2]
[319486548,1710800019154,-500.0,0.00026301,2]
[319486549,1710800019164,-4393.41,0.00026301,2]
[319486550,1710800019173,-2303.75,0.00026301,2]
[319486551,1710800019182,-1144.14,0.00026301,2]
[319486552,1710800019192,-1229.49,0.00026301,2]
[319486553,1710800019201,-511.29,0.00026301,2]
[319486554,1710800019211,-1401.22,0.00026301,2]
[319486555,1710800019220,-500.0,0.00026301,2]
[319486556,1710800019229,-1432.28,0.00026301,2]
[319486557,1710800019238,-516.82,0.00026301,2]
[319486558,1710800019248,-500.0,0.00026301,2]
[319486559,1710800019257,-1305.33,0.00026301,2]
[319486560,1710800019265,-678.53,0.00026301,2]
[319486561,1710800019274,-581.47,0.00026301,2]
[319486562,1710800019283,-737.52,0.00026301,2]
[319486563,1710800019292,-1022.21,0.00026301,2]
[319486564,1710800019302,-1654.91,0.00026301,2]
[319486565,1710800019311,-745.31,0.00026301,2]
[319486566,1710800019319,-7202.93,0.00026301,2]
[319486567,1710800019330,-2992.02,0.00026301,2]
[319486568,1710800019339,-20689.66,0.00026301,2]
[319486569,1710800019348,-502.32873727,0.00026301,2]
[319486570,1710800019357,-638.22,0.00026301,2]
[319486571,1710800019366,-1088.66,0.00026301,2]
[319486572,1710800019375,-1110.24,0.00026301,2]
[319486573,1710800019385,-1157.8,0.00026301,2]
[319486574,1710800019394,-1090.38,0.00026301,2]
[319486575,1710800019403,-1367.92,0.00026301,2]
[319486576,1710800019412,-500.0,0.00026301,2]
[319486577,1710800019422,-1716.46,0.00026301,2]
[319486578,1710800019431,-605.07,0.00026301,2]
[319486579,1710800019440,-622.92,0.00026301,2]
[319486580,1710800019449,-8212.3,0.00026301,2]
[319486581,1710800019458,-738.47,0.00026301,2]
[319486582,1710800019467,-6843.13,0.00026301,2]
[319486583,1710800019477,-2375.9,0.00026301,2]
[319486584,1710800019488,-1412.21,0.00026301,2]
[319486585,1710800019497,-1814.94,0.00026301,2]
[319486586,1710800019507,-720.26,0.00026301,2]
[319486587,1710800019516,-642.05,0.00026301,2]
[319486588,1710800019525,-7701.15,0.00026301,2]
[319486589,1710800019534,-2621.03,0.00026301,2]
[319486590,1710800019544,-867.51,0.00026301,2]
[319486591,1710800019553,-70618.05,0.00026301,2]
[319486592,1710800019563,-1283.55,0.00026301,2]
[319486593,1710800019572,-933.88,0.00026301,2]
[319486594,1710800019581,-651.4,0.00026301,2]
[319486595,1710800019591,-1968.24,0.00026301,2]
[319486596,1710800019605,-1507.28,0.00026301,2]
[319486597,1710800019614,-15625.12,0.00026301,2]
[319486598,1710800019624,-500.0,0.00026301,2]
[319486599,1710800019633,-2930.24,0.00026301,2]
[319486600,1710800019643,-908.19,0.00026301,2]
[319486601,1710800019652,-836.99,0.00026301,2]
[319486602,1710800019661,-1649.1,0.00026301,2]
[319486603,1710800019671,-386.07,0.00026301,2]
[319486604,1710800019682,-1000.59,0.00026301,2]
[319486605,1710800019691,-3638.93,0.00026301,2]
[319486606,1710800019701,-500.0,0.00026301,2]
[319486607,1710800019711,-2240.25,0.00026301,2]
[319486608,1710800019720,-500.0,0.00026301,2]
[319486609,1710800019730,-1827.91,0.00026301,2]
[319486610,1710800019739,-876.56,0.00026301,2]
[319486611,1710800019748,-355.42414265,0.00026301,2]
[319486612,1710800019757,-2226.67,0.00026301,2]
[319486613,1710800019767,-153.63116793,0.00026301,2]
[319486614,1710800019777,-500.0,0.00026301,2]
[319486615,1710800019786,-3729.26,0.00026301,2]
[319486616,1710800019796,-500.0,0.00026301,2]
[319486617,1710800019806,-3606.56,0.00026301,2]
[319486618,1710800019815,-1207.02,0.00026301,2]
[319486619,1710800019824,-963.32,0.00026301,2]
[319486620,1710800019834,-28470.72,0.00026301,2]
[319486621,1710800019843,-2980.27,0.00026301,2]
[319486622,1710800019852,-500.0,0.00026301,2]
[319486623,1710800019861,-500.0,0.00026301,2]
[319486624,1710800019869,-1014.54,0.00026301,2]
[319486625,1710800019878,-1007.55,0.00026301,2]
[319486626,1710800019888,-500.0,0.00026301,2]
[319486627,1710800019897,-12991.16,0.00026301,2]
[319486628,1710800019906,-1000.56,0.00026301,2]
[319486629,1710800019915,-825.64,0.00026301,2]
[319486630,1710800019924,-1967.21,0.00026301,2]
[319486631,1710800019933,-500.0,0.00026301,2]
[319486632,1710800019942,-500.0,0.00026301,2]
[319486633,1710800019951,-989.42,0.00026301,2]
[319486634,1710800019960,-3061.78,0.00026301,2]
[319486635,1710800019969,-3350.06,0.00026301,2]
[319486636,1710800019978,-1418.83,0.00026301,2]
[319486637,1710800019987,-578.72,0.00026301,2]
[319486638,1710800019997,-500.0,0.00026301,2]
[319486639,1710800020006,-1283.92,0.00026301,2]
[319486640,1710800020015,-1017.47,0.00026301,2]
[319486641,1710800020024,-793.34,0.00026301,2]
[319486642,1710800020034,-500.0,0.00026301,2]
[319486643,1710800020043,-544.38,0.00026301,2]
[319486644,1710800020053,-1383.54,0.00026301,2]
[319486645,1710800020063,-3058.85,0.00026301,2]
[319486646,1710800020072,-500.0,0.00026301,2]
[319486647,1710800020082,-4863.68,0.00026301,2]
[319486648,1710800020092,-3420.67,0.00026301,2]
[319486649,1710800020101,-1467.98,0.00026301,2]
[319486650,1710800020110,-283.05448059,0.00026301,2]
[319486651,1710800020120,-909.74,0.00026301,2]
[319486652,1710800020129,-500.0,0.00026301,2]
[319486653,1710800020138,-500.0,0.00026301,2]
[319486654,1710800020147,-616.14,0.00026301,2]
[319486655,1710800020157,-500.0,0.00026301,2]
[319486656,1710800020166,-1472.05,0.00026301,2]
[319486657,1710800020174,-1391.49,0.00026301,2]
[319486658,1710800020183,-500.0,0.00026301,2]
[319486659,1710800020192,-501.4,0.00026301,2]
[319486660,1710800020201,-500.0,0.00026301,2]
[319486661,1710800020210,-1044.22,0.00026301,2]
[319486662,1710800020219,-736.5,0.00026301,2]
[319486663,1710800020228,-1726.54,0.00026301,2]
[319486664,1710800020238,-1026.28,0.00026301,2]
[319486665,1710800020247,-2302.64,0.00026301,2]
[319486666,1710800020256,-1165.44,0.00026301,2]
[319486667,1710800020266,-12189.86,0.00026301,2]
[319486668,1710800020275,-1316.33,0.00026301,2]
[319486669,1710800020284,-1375.05,0.00026301,2]
[319486670,1710800020294,-515.52,0.00026301,2]
[319486671,1710800020303,-1294.68,0.00026301,2]
[319486672,1710800020312,-500.0,0.00026301,2]
[319486673,1710800020321,-1925.65,0.00026301,2]
[319486674,1710800020330,-1545.51,0.00026301,2]
[319486675,1710800020339,-728.8,0.00026301,2]
[319486676,1710800020348,-1677.75,0.00026301,2]
[319486677,1710800020358,-1530.51,0.00026301,2]
[319486678,1710800020367,-6062.83,0.00026301,2]
[319486679,1710800020377,-500.0,0.00026301,2]
[319486680,1710800020387,-630.76,0.00026301,2]
[319486681,1710800020397,-697.84,0.00026301,2]
[319486682,1710800020407,-1154.87,0.00026301,2]
[319486683,1710800020417,-1111.24,0.00026301,2]
[319486684,1710800020426,-2083.43,0.00026301,2]
[319486685,1710800020437,-500.0,0.00026301,2]
[319486686,1710800020447,-873.95,0.00026301,2]
[319486687,1710800020457,-1539.77,0.00026301,2]
[319486688,1710800020466,-572.93,0.00026301,2]
[319486689,1710800020476,-1218.6,0.00026301,2]
[319486690,1710800020484,-762.41,0.00026301,2]
[319486691,1710800020495,-805.44,0.00026301,2]
[319486692,1710800020505,-2278.77,0.00026301,2]
[319486693,1710800020514,-2011.92,0.00026301,2]
[319486694,1710800020524,-971.93,0.00026301,2]
[319486695,1710800020533,-2062.21,0.00026301,2]
[319486696,1710800020542,-768.87,0.00026301,2]
[319486697,1710800020552,-500.0,0.00026301,2]
[319486698,1710800020561,-1340.16,0.00026301,2]
[319486699,1710800020571,-1606.59,0.00026301,2]
[319486700,1710800020582,-1007.76,0.00026301,2]
[319486701,1710800020592,-4162.89,0.00026301,2]
[319486702,1710800020602,-1051.06,0.00026301,2]
[319486703,1710800020615,-699.3,0.00026301,2]
[319486704,1710800020624,-1416.75,0.00026301,2]
[319486705,1710800020633,-518.73,0.00026301,2]
[319486706,1710800020643,-1220.37,0.00026301,2]
[319486707,1710800020653,-291.48719944,0.00026301,2]
[319486708,1710800020662,-1475.69,0.00026301,2]
[319486709,1710800020671,-960.76,0.00026301,2]
[319486710,1710800020681,-1579.78,0.00026301,2]
[319486711,1710800020690,-598.24,0.00026301,2]
[319486712,1710800020700,-3689.48,0.00026301,2]
[319486713,1710800020710,-685.26,0.00026301,2]
[319486714,1710800020719,-1883.02,0.00026301,2]
[319486715,1710800020728,-725.93,0.00026301,2]
[319486716,1710800020737,-500.0,0.00026301,2]
[319486717,1710800020747,-582.85,0.00026301,2]
[319486718,1710800020756,-597.67,0.00026301,2]
[319486719,1710800020765,-945.24,0.00026301,2]
[319486720,1710800020775,-3264.27,0.00026301,2]
[319486721,1710800020785,-1114.59,0.00026301,2]
[319486722,1710800020794,-1101.09,0.00026301,2]
[319486723,1710800020803,-3081.47,0.00026301,2]
[319486724,1710800020813,-1090.35,0.00026301,2]
[319486725,1710800020822,-545.12,0.00026301,2]
[319486726,1710800020831,-525.35,0.00026301,2]
[319486727,1710800020840,-926.2,0.00026301,2]
[319486728,1710800020849,-738.48,0.00026301,2]
[319486729,1710800020858,-661.43,0.00026301,2]
[319486730,1710800020866,-521.01,0.00026301,2]
[319486731,1710800020875,-3873.88,0.00026301,2]
[319486732,1710800020884,-1479.1,0.00026301,2]
[319486733,1710800020893,-2791.36,0.00026301,2]
[319486734,1710800020902,-15199.29,0.00026301,2]
[319486735,1710800020911,-8062.17,0.00026301,2]
[319486736,1710800020920,-524.35,0.00026301,2]
[319486737,1710800020929,-1469.15,0.00026301,2]
[319486738,1710800020939,-1368.38,0.00026301,2]
[319486739,1710800020948,-578.84,0.00026301,2]
[319486740,1710800020957,-500.0,0.00026301,2]
[319486741,1710800020966,-625.58,0.00026301,2]
[319486742,1710800020974,-500.0,0.00026301,2]
[319486743,1710800020983,-659.71,0.00026301,2]
[319486744,1710800020993,-500.0,0.00026301,2]
[319486745,1710800021002,-1165.69,0.00026301,2]
[319486746,1710800021011,-522.17,0.00026301,2]
[319486747,1710800021020,-500.0,0.00026301,2]
[319486748,1710800021029,-547.31,0.00026301,2]
[319486749,1710800021038,-500.0,0.00026301,2]
[319486750,1710800021047,-1931.5,0.00026301,2]
[319486751,1710800021057,-1852.16,0.00026301,2]
[319486752,1710800021065,-5194.45,0.00026301,2]
[319486753,1710800021075,-4366.56,0.00026301,2]
[319486754,1710800021084,-2626.87,0.00026301,2]
[319486755,1710800021093,-643.53,0.00026301,2]
[319486756,1710800021102,-4566.9,0.00026301,2]
[319486757,1710800021111,-1560.19,0.00026301,2]
[319486758,1710800021120,-574.42,0.00026301,2]
[319486759,1710800021129,-7356.66,0.00026301,2]
[319486760,1710800021138,-2335.37,0.00026301,2]
[319486761,1710800021147,-1433.97,0.00026301,2]
[319486762,1710800021156,-1302.8,0.00026301,2]
[319486763,1710800021165,-12149.23,0.00026301,2]
[319486764,1710800021174,-976.06,0.00026301,2]
[319486765,1710800021183,-500.0,0.00026301,2]
[319486766,1710800021192,-596.59,0.00026301,2]
[319486767,1710800021201,-773.37,0.00026301,2]
[319486768,1710800021210,-500.0,0.00026301,2]
[319486769,1710800021219,-12163.47,0.00026301,2]
[319486770,1710800021229,-397.91117173,0.00026301,2]
[319486771,1710800021239,-500.0,0.00026301,2]
[319486772,1710800021248,-1040.95,0.00026301,2]
[319486773,1710800021257,-4014.74,0.00026301,2]
[319486774,1710800021266,-1666.88,0.00026301,2]
[319486775,1710800021275,-676.8,0.00026301,2]
[319486776,1710800021285,-2937.18,0.00026301,2]
[319486777,1710800021294,-798.37,0.00026301,2]
[319486778,1710800021303,-514.53,0.00026301,2]
[319486779,1710800021312,-630.18,0.00026301,2]
[319486780,1710800021321,-500.0,0.00026301,2]
[319486781,1710800021331,-4002.95,0.00026301,2]
[319486782,1710800021341,-500.0,0.00026301,2]
[319486783,1710800021351,-1825.34,0.00026301,2]
[319486784,1710800021361,-2538.34,0.00026301,2]
[319486785,1710800021370,-713.44,0.00026301,2]
[319486786,1710800021379,-1704.18,0.00026301,2]
[319486787,1710800021388,-2264.59,0.00026301,2]
[319486788,1710800021397,-999.91,0.00026301,2]
[319486789,1710800021407,-3032.32,0.00026301,2]
[319486790,1710800021416,-1092.32,0.00026301,2]
[319486791,1710800021426,-1455.99,0.00026301,2]
[319486792,1710800021435,-1138.58,0.00026301,2]
[319486793,1710800021444,-951.86,0.00026301,2]
[319486794,1710800021453,-780.67,0.00026301,2]
[319486795,1710800021463,-1309.57,0.00026301,2]
[319486796,1710800021472,-500.0,0.00026301,2]
[319486797,1710800021481,-500.0,0.00026301,2]
[319486798,1710800021490,-4539.82,0.00026301,2]
[319486799,1710800021500,-4994.79,0.00026301,2]
[319486800,1710800021510,-1485.77,0.00026301,2]
[319486801,1710800021519,-7034.98,0.00026301,2]
[319486802,1710800021528,-849.91,0.00026301,2]
[319486803,1710800021537,-1794.57,0.00026301,2]
[319486804,1710800021547,-500.0,0.00026301,2]